bitfinex/quotes_ETHUSD_20241122
["timestamp","ask_amount","ask_price","bid_price","bid_amount"]
[1732288531980,0.8257,3305.5,3304.8,2.78511138]
[1732288532477,0.1475352,3305.6,3304.9,3.55]
[1732288532727,0.1475352,3305.6,3304.9,3.88653662]
[1732288532852,0.1475352,3305.6,3304.9,3.33653662]
[1732288533058,0.1475352,3305.6,3304.9,0.33653662]
[1732288533257,0.1475352,3305.6,3304.6,3.0]
[1732288533507,0.1475352,3305.6,3304.8,2.78511138]
[1732288533667,0.1475352,3305.6,3305.0,0.55]
[1732288535113,0.1475352,3305.6,3305.0,0.58025212]
[1732288535859,0.1475352,3305.6,3305.1,2.78511138]
[1732288536167,0.1475352,3305.6,3305.2,0.33653635]
[1732288536587,0.1475352,3305.6,3305.0,0.55]
[1732288536978,0.1475352,3305.6,3305.0,0.58025213]
[1732288537418,0.1475352,3305.6,3305.2,0.55]
[1732288537616,0.1475352,3305.6,3305.1,2.78511138]
[1732288537804,0.1475352,3305.6,3305.0,0.55]
[1732288537976,0.1475352,3305.6,3304.9,3.55]
[1732288538178,0.1475352,3305.6,3304.9,3.82851114]
[1732288538424,0.7832,3305.5,3304.9,0.27851114]
[1732288538718,0.7832,3305.5,3304.5,2.78511138]
[1732288539100,0.7832,3305.5,3303.7,0.03025572]
[1732288539101,0.7832,3305.5,3304.2,2.78511138]
[1732288539673,0.7549,3305.4,3303.6,2.78511138]
[1732288540281,0.7549,3305.4,3303.7,0.03026584]
[1732288540477,0.7549,3305.4,3303.6,2.78511138]
[1732288540796,0.8297,3305.3,3303.3,2.78511138]
[1732288541000,0.8297,3305.1,3303.3,3.06362252]
[1732288541172,0.8297,3305.1,3303.3,0.27851114]
[1732288541374,0.8297,3305.1,3303.0,2.78511138]
[1732288541617,0.8297,3305.1,3302.7,0.40710062]
[1732288541618,0.8297,3305.1,3303.3,2.78511138]
[1732288542122,0.8297,3305.1,3303.4,0.03026886]
[1732288542475,0.8297,3305.1,3303.4,0.58026886]
[1732288542712,0.8297,3305.1,3303.5,0.03026676]
[1732288542920,0.8254,3304.9,3303.6,0.35802668]
[1732288543215,0.8254,3304.9,3303.7,0.03026676]
[1732288543376,0.8254,3304.9,3303.7,3.58026676]
[1732288543585,0.8254,3304.9,3303.9,0.55]
[1732288544140,0.8254,3304.9,3304.0,0.03026146]
[1732288544352,0.8254,3304.9,3304.1,0.55]
[1732288544658,0.8254,3304.9,3304.1,0.58025714]
[1732288544805,0.8254,3304.9,3304.2,2.78511138]
[1732288545143,0.7954,3305.5,3304.3,3.91679424]
[1732288545448,0.7954,3305.5,3304.3,3.88653685]
[1732288545747,0.7954,3305.5,3304.4,0.55]
[1732288547039,0.7954,3305.5,3304.3,3.33653685]
[1732288547326,0.7954,3305.5,3304.4,0.61216482]
[1732288547531,0.7954,3305.5,3304.1,0.55]
[1732288547896,3.58051138,3305.5,3303.7,3.0]
[1732288548155,0.7921,3305.1,3303.3,2.78511138]
[1732288548360,0.37280466,3305.4,3303.0,2.78511138]
[1732288548361,0.7921,3304.8,3303.0,2.78511138]
[1732288548646,0.7921,3304.8,3303.3,2.78511138]
[1732288548812,0.7921,3304.8,3303.8,2.78511138]
[1732288549012,0.7921,3304.8,3303.9,0.27851114]
[1732288549331,0.7921,3304.8,3303.8,2.78511138]
[1732288549642,0.7921,3304.8,3303.9,3.03026194]
[1732288549849,0.7921,3304.8,3304.2,3.55]
[1732288550142,0.7921,3304.8,3304.3,0.355]
[1732288550516,0.7806,3305.5,3304.4,0.3017]
[1732288550723,0.7806,3305.5,3304.4,3.08681138]
[1732288551213,0.7806,3305.5,3304.8,0.3017]
[1732288551748,0.7806,3305.5,3304.8,3.3017]
[1732288551904,0.7806,3305.5,3305.0,0.3017]
[1732288552927,0.7806,3305.5,3304.9,0.3017]
[1732288553937,0.7806,3305.5,3304.5,3.87847815]
[1732288554244,0.7806,3305.5,3304.9,0.3017]
[1732288554408,0.7806,3305.5,3305.0,0.88195238]
[1732288555050,0.7806,3305.5,3305.0,0.8517]
[1732288555554,0.7806,3305.5,3305.1,0.03025143]
[1732288555843,0.1475352,3305.6,3305.1,0.03025143]
[1732288556304,0.1475352,3305.6,3305.0,3.58025072]
[1732288561405,0.1475352,3305.6,3304.9,0.3017]
[1732288561621,0.8026,3305.5,3304.2,0.3017]
[1732288561918,0.8026,3305.5,3304.3,0.03025388]
[1732288562709,0.8026,3305.5,3304.3,0.88195388]
[1732288562947,0.8026,3305.5,3304.9,3.57677815]
[1732288563243,0.8026,3305.5,3305.0,3.55]
[1732288563463,0.1475352,3305.6,3305.4,3.0]
[1732288563745,0.1475352,3305.6,3305.5,0.3]
[1732288563946,0.1475352,3305.6,3305.2,0.55]
[1732288564644,0.1475352,3305.6,3305.1,0.55]
[1732288565045,0.1475352,3305.6,3305.2,0.355]
[1732288565275,0.8132,3305.5,3304.6,3.3017]
[1732288565412,0.8132,3305.5,3304.2,3.0]
[1732288565607,0.8132,3305.5,3304.4,0.3017]
[1732288565948,0.8132,3305.5,3304.5,0.03025584]
[1732288566146,0.8132,3305.5,3304.6,0.3017]
[1732288566352,0.8132,3305.5,3304.7,0.03025212]
[1732288566761,0.8132,3305.5,3304.8,0.3017]
[1732288566940,0.8132,3305.5,3304.9,0.58025216]
[1732288567141,0.8132,3305.5,3304.9,0.88195216]
[1732288567319,0.8132,3305.5,3305.0,0.03025215]
[1732288567514,0.8132,3305.5,3304.9,0.8517]
[1732288567718,0.8132,3305.5,3304.9,0.3017]
[1732288568111,0.8132,3305.5,3304.6,3.0]
[1732288568112,0.8132,3305.5,3304.7,0.3017]
[1732288568318,0.8132,3305.5,3304.7,0.95937782]
[1732288568837,0.8132,3305.5,3304.7,0.98963344]
[1732288569254,0.8132,3305.5,3304.8,0.8517]
[1732288569459,0.1475352,3305.6,3305.0,3.8517]
[1732288569759,0.1475352,3305.6,3305.2,0.3017]
[1732288570370,0.1475352,3305.6,3305.3,0.8517]
[1732288570541,0.1475352,3305.6,3305.2,0.55]
[1732288571518,0.1475352,3305.6,3305.1,0.53561381]
[1732288571746,0.1475352,3305.6,3305.2,0.35356138]
[1732288571917,0.1475352,3305.6,3304.9,0.8517]
[1732288572127,0.7828,3305.5,3304.9,0.3017]
[1732288572737,0.1475352,3305.6,3305.3,3.57677815]
[1732288572930,0.1475352,3305.6,3305.4,0.35767782]
[1732288573443,0.1475352,3305.6,3305.0,3.58025125]
[1732288573950,0.1475352,3305.6,3305.4,3.0]
[1732288574756,0.7609,3307.4,3305.5,6.32667817]
[1732288574955,0.7609,3307.4,3305.8,2.77667817]
[1732288575425,0.7609,3307.4,3305.6,3.63266782]
[1732288576851,0.7609,3307.4,3305.9,3.0]
[1732288577344,0.7609,3307.4,3306.2,3.0]
[1732288577546,0.7609,3307.4,3306.7,2.77667817]
[1732288577748,0.823,3307.9,3307.1,3.0]
[1732288578475,0.823,3307.9,3307.1,3.58069138]
[1732288580069,0.823,3307.9,3307.1,0.03023557]
[1732288580378,0.8067,3308.8,3307.7,3.0]
[1732288580665,0.8067,3308.8,3308.2,3.0]
[1732288580879,0.8067,3308.8,3307.8,2.77667817]
[1732288581075,0.8067,3308.8,3307.3,3.0]
[1732288581226,0.8067,3308.8,3307.3,3.63266782]
[1732288581423,0.8067,3308.8,3307.3,3.0]
[1732288581919,0.8067,3308.8,3307.2,2.77667817]
[1732288582123,0.8067,3308.8,3307.3,3.55]
[1732288582424,0.8067,3308.8,3307.3,3.0]
[1732288582752,0.8067,3308.8,3307.5,2.77667817]
[1732288582961,0.8067,3308.8,3306.5,0.70880062]
[1732288582962,0.8067,3308.8,3307.9,0.55]
[1732288583268,0.7897608,3308.8,3308.1,2.77667817]
[1732288583478,0.7897608,3308.8,3308.2,0.58022302]
[1732288583643,0.7897608,3308.8,3308.2,3.58022302]
[1732288583822,0.7897608,3308.8,3308.4,0.55]
[1732288584263,0.7897608,3308.8,3308.3,0.63569012]
[1732288586032,0.7897608,3308.8,3307.9,3.0]
[1732288586227,0.7897608,3308.8,3307.7,0.55]
[1732288586489,0.7897608,3308.8,3307.5,2.77667817]
[1732288586772,0.7897608,3308.8,3307.6,3.27766782]
[1732288587126,0.7897608,3308.8,3307.8,2.77667817]
[1732288587654,0.7897608,3308.8,3307.9,3.0]
[1732288587857,0.7897608,3308.8,3308.4,2.77667817]
[1732288588574,0.7897608,3308.8,3308.5,0.55]
[1732288588734,0.1475352,3308.9,3308.7,2.77667817]
[1732288588929,0.1475352,3308.9,3308.5,0.95707441]
[1732288589141,0.1475352,3308.9,3308.5,3.95707441]
[1732288589486,0.1475352,3308.9,3308.7,3.32667817]
[1732288589697,0.1475352,3308.9,3308.8,3.0]
[1732288589843,0.1475352,3308.9,3308.8,3.40707441]
[1732288590788,0.1475352,3308.9,3308.5,3.55]
[1732288590985,0.1475352,3308.9,3308.6,0.63266782]
[1732288591193,0.1475352,3308.9,3308.4,2.77667817]
[1732288591958,0.1475352,3308.9,3308.1,2.77667817]
[1732288592159,0.1475352,3308.9,3307.8,2.77667817]
[1732288592359,0.7591,3308.8,3307.5,2.77667817]
[1732288592564,0.7591,3308.8,3307.2,2.77667817]
[1732288592746,3.1697452,3308.9,3302.7,6.17612404]
[1732288592747,3.02644,3304.3,3302.7,6.17612404]
[1732288592950,5.55335634,3303.3,3303.0,0.06920115]
[1732288593261,0.01,3302.5,3300.5,0.03028817]
[1732288593443,0.01,3302.5,3300.7,2.77667817]
[1732288593444,0.03023254,3302.5,3300.7,2.77667817]
[1732288593648,0.03023254,3302.5,3300.8,0.27766782]
[1732288593844,1.25109861,3301.4,3300.5,2.77667817]
[1732288594094,3.83735402,3301.3,3300.6,0.78389208]
[1732288594298,1.25109861,3301.4,3300.7,3.26770486]
[1732288594495,3.83763403,3301.3,3300.8,0.40458647]
[1732288594660,1.87664792,3301.5,3300.8,0.40458647]
[1732288594661,1.25109861,3301.5,3300.9,0.49102669]
[1732288594850,1.14037422,3302.2,3301.2,3.90698901]
[1732288595054,2.50219723,3302.8,3301.3,0.49661876]
[1732288595265,3.7537022,3303.3,3301.3,0.49661876]
[1732288595266,2.50219723,3303.1,3301.4,0.50124514]
[1732288595597,2.50219723,3303.3,3301.6,0.01]
[1732288595747,3.33129723,3304.0,3301.8,3.84698901]
[1732288595955,3.32129723,3304.0,3301.9,0.93606856]
[1732288596154,0.8191,3304.0,3302.0,0.55]
[1732288596488,0.04783746,3303.9,3301.9,0.43482342]
[1732288596730,2.55003469,3303.9,3301.8,0.50124514]
[1732288596846,2.06487691,3303.8,3301.4,3.0]
[1732288597051,0.01,3303.8,3302.0,0.50124514]
[1732288597788,0.01,3303.8,3302.1,0.55]
[1732288597998,0.01,3303.8,3302.3,0.55]
[1732288598202,0.01,3303.8,3302.3,1.16087246]
[1732288598548,0.8191,3304.0,3302.3,1.16087246]
[1732288598861,0.01,3303.8,3302.3,1.16087246]
[1732288599275,0.8191,3304.0,3302.3,1.16087246]
[1732288601103,0.8191,3304.0,3302.5,0.55]
[1732288601287,0.8191,3304.0,3302.7,0.55]
[1732288602101,0.06892581,3303.9,3302.7,0.55]
[1732288602612,0.10675957,3303.9,3302.6,0.40512451]
[1732288602786,0.06892581,3303.9,3302.3,0.61087246]
[1732288603483,0.07892581,3303.9,3302.3,0.61087246]
[1732288603683,0.07892581,3303.9,3302.2,0.129]
[1732288604003,0.07892581,3303.9,3302.3,0.55]
[1732288604200,0.07892581,3303.9,3302.2,0.129]
[1732288604201,0.11675986,3303.9,3302.2,0.129]
[1732288604411,0.11675986,3303.9,3302.3,0.3129]
[1732288604909,0.11676475,3303.9,3302.3,0.3129]
[1732288605067,0.07892581,3303.9,3302.3,0.92364933]
[1732288605469,0.07892581,3303.9,3302.4,0.3017]
[1732288606169,0.07892581,3303.9,3302.3,0.92364933]
[1732288606170,0.03783896,3303.8,3303.0,0.3017]
[1732288606380,0.07892581,3303.9,3303.0,0.3017]
[1732288606895,0.07892581,3303.9,3303.1,0.55]
[1732288606896,0.06892581,3303.9,3303.1,0.55]
[1732288607094,0.06892581,3303.9,3303.1,0.8517]
[1732288607598,0.07892581,3303.9,3303.1,0.3017]
[1732288607941,0.11676718,3303.9,3303.1,0.3017]
[1732288608213,0.01,3303.3,3302.1,0.3017]
[1732288608421,0.06872483,3303.2,3302.1,0.3017]
[1732288608580,0.04785088,3303.1,3302.1,0.3017]
[1732288608779,0.06872483,3303.0,3302.1,0.3017]
[1732288609084,0.06872483,3303.0,3301.6,0.129]
[1732288609295,0.06872483,3303.0,3301.7,0.3017]
[1732288609676,0.01,3302.9,3301.7,0.3017]
[1732288610009,0.01,3302.7,3300.3,0.63024514]
[1732288610224,0.01,3302.5,3300.4,0.3017]
[1732288610387,0.01,3302.3,3300.4,0.91272171]
[1732288610708,0.06855409,3302.2,3300.4,0.61102171]
[1732288610921,0.06855409,3302.2,3300.4,1.11226685]
[1732288611072,0.06855409,3302.2,3300.4,0.50124514]
[1732288611269,0.06855409,3302.2,3300.3,0.129]
[1732288611270,0.06855409,3302.2,3300.5,0.50124514]
[1732288611596,0.07855409,3302.2,3300.5,0.50124514]
[1732288612002,0.07855409,3302.2,3300.5,1.11226685]
[1732288612205,0.07855409,3302.2,3300.6,0.55]
[1732288612394,0.07855409,3302.2,3300.6,1.05124514]
[1732288612588,0.07855409,3302.2,3300.8,0.55]
[1732288612790,0.06855409,3302.2,3300.8,0.55]
[1732288613019,0.06855409,3302.2,3301.0,0.55]
[1732288613338,0.06855409,3302.2,3300.9,0.55]
[1732288613495,0.06855409,3302.2,3301.1,0.55]
[1732288614018,0.10640928,3302.2,3300.8,0.55]
[1732288614219,0.06855409,3302.2,3300.7,0.16622668]
[1732288614388,0.06855409,3302.2,3300.5,0.61102171]
[1732288614720,0.06855409,3302.2,3300.7,3.5847278]
[1732288614905,0.10640995,3302.2,3300.8,3.0]
[1732288615104,0.06855409,3302.2,3300.8,3.0]
[1732288615280,0.10641365,3302.2,3300.8,3.0]
[1732288615479,0.10641365,3302.2,3300.9,0.55]
[1732288615801,0.06855409,3302.2,3300.9,1.16102171]
[1732288616392,0.10640931,3302.2,3300.9,1.16102171]
[1732288616576,0.06855409,3302.2,3300.9,0.61102171]
[1732288617779,0.06855409,3302.2,3301.2,3.55]
[1732288618129,0.06855409,3302.2,3301.6,0.55]
[1732288618282,0.06855409,3302.2,3301.5,0.55]
[1732288618485,0.06855409,3302.2,3301.7,0.55]
[1732288618704,0.06855409,3302.2,3301.9,0.55]
[1732288619499,0.8297,3302.9,3301.9,0.55]
[1732288620553,0.03784808,3302.8,3301.9,0.55]
[1732288620845,0.03785181,3302.7,3301.6,3.55]
[1732288621009,0.8297,3302.9,3302.1,3.0]
[1732288621214,0.03784863,3302.8,3301.8,0.55]
[1732288621413,0.5867,3302.9,3301.5,0.55]
[1732288621612,0.5867,3302.9,3302.2,0.55]
[1732288621901,0.5867,3302.9,3302.3,0.355]
[1732288622213,0.5867,3302.9,3301.8,0.55]
[1732288623440,0.01,3303.7,3302.1,0.55]
[1732288623598,0.01,3303.4,3302.1,3.55]
[1732288624199,0.83,3303.5,3302.1,3.55]
[1732288624425,0.83,3303.5,3302.3,0.55]
[1732288624624,0.03784203,3303.4,3302.3,0.55]
[1732288625206,0.83,3303.5,3302.3,0.55]
[1732288625600,0.03784283,3303.4,3302.3,0.55]
[1732288625806,0.01,3303.1,3302.3,0.55]
[1732288626137,0.01,3303.1,3302.2,0.3017]
[1732288626138,0.8191,3303.0,3302.2,0.3017]
[1732288626744,0.8191,3303.0,3302.3,0.33017]
[1732288627168,0.8145,3303.4,3302.1,3.3017]
[1732288627369,0.8145,3303.4,3302.2,0.55]
[1732288627571,0.03784295,3303.3,3302.4,0.55]
[1732288627730,0.8145,3303.4,3302.4,0.55]
[1732288628449,0.8145,3303.4,3302.5,3.3017]
[1732288628636,0.8258,3303.9,3302.6,0.55]
[1732288628968,0.8258,3303.9,3302.9,3.55]
[1732288629366,0.8158,3303.9,3302.9,3.55]
[1732288630064,0.8258,3303.9,3302.9,0.55]
[1732288630243,0.8258,3303.9,3302.8,0.3017]
[1732288630446,0.8158,3303.9,3302.9,0.55]
[1732288630837,0.8258,3303.9,3302.9,0.55]
[1732288631846,0.03783856,3303.8,3302.9,0.55]
[1732288632348,0.03783856,3303.8,3301.6,0.50124514]
[1732288632349,0.01,3303.5,3302.8,0.3017]
[1732288632722,0.01,3303.2,3302.8,0.3017]
[1732288632923,0.01,3303.0,3301.6,3.5847278]
[1732288633137,0.04784996,3303.0,3301.7,0.35847278]
[1732288633337,0.01,3302.8,3301.7,0.35847278]
[1732288633536,0.01,3302.6,3301.7,0.35847278]
[1732288633744,0.7662,3302.5,3301.2,3.5847278]
[1732288633946,0.01,3302.2,3300.9,0.372]
[1732288634157,0.01,3302.2,3300.8,3.5847278]
[1732288634322,0.7662,3302.1,3300.8,3.5847278]
[1732288634527,0.03785855,3302.0,3300.8,3.5847278]
[1732288634731,0.7662,3302.1,3300.8,3.5847278]
[1732288634933,0.7662,3302.1,3301.1,0.3017]
[1732288635139,0.01,3301.8,3301.1,0.3017]
[1732288635559,0.03785855,3302.0,3300.0,3.9567278]
[1732288635560,0.01,3301.6,3300.0,3.9567278]
[1732288635868,0.04786668,3301.6,3300.0,3.9567278]
[1732288636070,0.01,3301.6,3300.0,3.9567278]
[1732288636228,0.8135,3301.7,3300.8,3.5847278]
[1732288636622,0.01,3302.4,3301.2,3.5847278]
[1732288636623,2.00462409,3302.3,3301.2,3.5847278]
[1732288636827,0.7618,3302.3,3301.4,0.55]
[1732288637260,0.7618,3302.3,3301.6,3.5847278]
[1732288637467,1.24282409,3302.1,3301.7,0.55]
[1732288637646,1.24282409,3302.1,3301.3,3.0]
[1732288637647,1.24282409,3302.1,3301.4,0.55]
[1732288637854,1.24282409,3302.1,3301.6,0.55]
[1732288638112,2.62603613,3302.3,3301.8,0.55]
[1732288638113,2.00462409,3302.3,3301.8,0.55]
[1732288638279,2.00462409,3302.3,3302.0,0.55]
[1732288638567,2.48564818,3302.1,3301.9,0.355]
[1732288638769,1.89076266,3302.2,3302.0,7.1347278]
[1732288638972,1.26047402,3302.4,3302.2,0.55]
[1732288639187,1.26047402,3302.7,3302.4,3.55]
[1732288639332,1.26047402,3303.0,3302.6,0.55]
[1732288639532,1.26047402,3303.3,3303.1,0.55]
[1732288639729,2.82326262,3303.2,3303.1,0.55]
[1732288639926,2.82326262,3303.2,3302.1,3.9567278]
[1732288640179,1.26047402,3302.8,3302.2,3.55]
[1732288640378,1.26047402,3302.8,3302.6,3.55]
[1732288640666,1.26047402,3302.9,3302.6,3.55]
[1732288641029,1.26047402,3302.8,3302.6,3.55]
[1732288641233,1.26047402,3302.7,3302.6,3.5385]
[1732288641433,1.26047402,3303.0,3302.6,4.04533039]
[1732288641668,1.26047402,3303.1,3302.9,3.5847278]
[1732288641882,1.26047402,3303.1,3303.0,3.0]
[1732288642084,2.48564818,3303.5,3303.0,3.0]
[1732288642085,1.81830352,3303.5,3303.0,3.0]
[1732288642390,3.74225456,3304.1,3302.7,0.44579729]
[1732288642391,2.48564818,3304.0,3303.5,3.0]
[1732288642597,2.48564818,3304.2,3303.5,3.0]
[1732288642884,2.48564818,3304.3,3303.5,3.0]
[1732288643179,2.48564818,3304.4,3303.5,3.0]
[1732288643389,2.48564818,3304.4,3303.6,0.55]
[1732288643594,2.48564818,3304.2,3303.1,3.0]
[1732288643908,2.48564818,3303.6,3302.6,3.5847278]
[1732288644191,2.48564818,3303.3,3302.3,0.372]
[1732288644340,0.01,3303.6,3302.3,0.372]
[1732288644341,4.56792879,3303.2,3302.3,0.372]
[1732288644544,4.56854007,3303.1,3302.2,3.5847278]
[1732288644743,4.56858247,3303.0,3302.6,3.5847278]
[1732288644977,2.48564818,3303.2,3302.6,3.5847278]
[1732288645184,2.48564818,3303.6,3303.0,3.5847278]
[1732288645356,2.48564818,3303.7,3303.0,3.5847278]
[1732288645547,4.56801693,3303.6,3303.0,3.5847278]
[1732288645867,2.48564818,3303.6,3303.2,0.55]
[1732288646059,2.08241941,3303.5,3303.2,0.55]
[1732288646259,2.48564818,3303.6,3303.2,0.55]
[1732288646464,2.48564818,3303.6,3303.2,1.1441549]
[1732288646645,2.08231243,3303.5,3303.2,0.55]
[1732288646841,2.48564818,3303.6,3303.2,0.55]
[1732288647285,2.48564818,3303.7,3303.2,0.55]
[1732288647453,4.6057673,3303.6,3302.6,3.5847278]
[1732288647659,2.48564818,3303.4,3302.7,3.0]
[1732288647863,4.56793226,3303.3,3302.6,3.5847278]
[1732288648058,4.56793226,3303.2,3302.6,3.94320058]
[1732288648384,2.48564818,3303.4,3302.6,3.94320058]
[1732288648544,3.14831447,3303.6,3302.2,0.372]
[1732288648545,2.48564818,3303.6,3303.0,3.5847278]
[1732288648887,2.48564818,3303.8,3303.1,0.372]
[1732288649094,2.48564818,3304.0,3303.5,3.0]
[1732288649249,2.08226308,3303.9,3303.5,3.0]
[1732288649449,2.48564818,3304.1,3303.6,0.55]
[1732288650563,4.5670468,3304.0,3303.8,3.5847278]
[1732288650759,3.12209793,3305.1,3303.9,3.55]
[1732288650760,0.7637,3304.8,3303.9,3.55]
[1732288650965,0.7637,3304.8,3304.2,3.5847278]
[1732288651263,0.7637,3305.3,3304.3,3.55]
[1732288651460,0.01,3304.9,3304.3,3.55]
[1732288651789,1.88732632,3304.5,3304.3,3.55]
[1732288652001,1.88732632,3304.6,3304.3,3.55]
[1732288652287,1.25817362,3304.6,3304.3,3.55]
[1732288652590,0.87440399,3305.2,3304.5,0.55]
[1732288652774,3.1422333,3306.1,3305.3,3.55]
[1732288652950,2.0886272,3306.0,3305.3,3.55]
[1732288653146,2.0786272,3305.9,3305.3,3.55]
[1732288653372,0.7916,3306.3,3305.3,3.55]
[1732288653574,0.8016,3306.3,3305.3,3.55]
[1732288653848,0.8016,3306.3,3305.3,3.922]
[1732288653849,0.7916,3306.3,3305.3,3.922]
[1732288654055,3.77067997,3306.7,3305.8,3.55]
[1732288654056,0.01,3306.4,3305.8,3.55]
[1732288654288,0.7933,3306.7,3305.8,3.55]
[1732288654289,0.8033,3306.7,3305.8,3.55]
[1732288654549,0.01,3306.4,3305.8,3.55]
[1732288655150,0.01,3306.4,3304.4,0.01]
[1732288655151,0.01,3306.0,3304.9,0.55]
[1732288655347,0.8141,3305.9,3304.9,0.55]
[1732288656354,0.8241,3305.9,3304.9,0.55]
[1732288656998,0.8241,3305.9,3304.3,3.5847278]
[1732288656999,0.01,3305.5,3304.3,3.5847278]
[1732288657220,0.01,3305.5,3304.7,3.5847278]
[1732288657723,0.01,3305.5,3304.3,3.5847278]
[1732288657938,0.01,3305.5,3304.3,3.94320058]
[1732288658286,0.01,3305.5,3304.4,3.0]
[1732288658522,0.01,3305.5,3304.5,0.55]
[1732288658833,0.01,3305.5,3304.4,0.55]
[1732288659983,0.01,3305.5,3304.4,0.94084728]
[1732288661232,0.01,3305.5,3304.2,3.0]
[1732288661233,0.7734,3305.2,3304.2,3.0]
[1732288661429,0.03782261,3305.1,3304.2,3.0]
[1732288661601,0.01,3305.0,3303.7,0.372]
[1732288661925,0.01,3305.0,3303.8,0.4261075]
[1732288662488,0.01,3305.0,3303.9,0.55]
[1732288662888,0.01,3305.0,3303.6,3.88907497]
[1732288663135,0.01,3305.0,3303.3,0.372]
[1732288663136,0.8218,3304.6,3303.3,0.372]
[1732288663295,0.01,3304.5,3303.3,0.7981075]
[1732288663496,0.04782767,3304.5,3303.3,0.7981075]
[1732288663784,0.01,3304.3,3303.3,0.4261075]
[1732288663988,0.8139,3304.2,3302.9,0.372]
[1732288664215,0.03783361,3304.1,3302.9,0.372]
[1732288664448,0.01,3303.9,3302.6,3.88907497]
[1732288664601,1.29096532,3304.1,3302.7,0.4261075]
[1732288664602,0.01,3303.7,3302.7,0.4261075]
[1732288665026,0.8087,3303.6,3302.7,0.4261075]
[1732288665215,0.04784074,3303.5,3302.1,0.372]
[1732288665436,1.26313171,3303.5,3302.4,3.88907497]
[1732288665599,0.8087,3303.6,3302.9,3.88907497]
[1732288665797,0.01,3303.9,3302.9,3.88907497]
[1732288665999,0.01,3303.7,3302.9,3.88907497]
[1732288666407,0.01,3303.7,3303.0,3.0]
[1732288666603,0.01,3303.7,3303.2,0.55]
[1732288668000,0.01,3303.7,3303.0,0.55]
[1732288669918,0.82063752,3303.6,3303.0,0.55]
[1732288670116,0.01,3303.4,3302.4,3.88907497]
[1732288670330,0.01,3303.4,3302.4,4.27798247]
[1732288670617,1.26432352,3303.4,3302.4,4.27798247]
[1732288670817,0.01,3303.4,3302.4,0.3889075]
[1732288671124,0.01,3303.4,3302.4,3.88907497]
[1732288671455,0.01,3303.4,3301.9,0.3017]
[1732288671456,1.25432352,3304.0,3303.1,3.55]
[1732288671668,0.7992,3304.1,3303.6,0.55]
[1732288672278,1.25432352,3304.4,3303.6,0.55]
[1732288672571,1.25432352,3304.4,3303.6,0.9939075]
[1732288672759,2.06352352,3304.5,3303.6,0.9939075]
[1732288672958,1.25432352,3304.4,3303.6,0.9939075]
[1732288673335,0.01,3304.2,3303.6,0.9939075]
[1732288673567,0.01,3304.2,3303.8,0.55]
[1732288673930,2.05352352,3304.5,3303.8,0.55]
[1732288674136,0.8092,3304.5,3303.8,0.55]
[1732288674433,2.05352352,3304.5,3303.8,0.55]
[1732288674732,1.25486583,3304.7,3304.2,0.55]
[1732288674933,0.8302,3305.8,3304.7,3.55]
[1732288677759,0.8302,3305.8,3305.3,0.55]
[1732288678981,0.8286,3306.2,3305.3,0.55]
[1732288679181,0.8286,3306.2,3305.7,3.88907497]
[1732288679375,0.8286,3306.6,3305.8,0.55]
[1732288679898,0.8286,3306.6,3305.8,3.55]
[1732288680099,0.8129,3307.3,3305.8,3.55]
[1732288680891,0.8129,3307.3,3305.7,4.26107497]
[1732288680892,0.8129,3307.3,3306.9,0.55]
[1732288682399,0.8094,3308.2,3306.9,0.55]
[1732288682853,0.8094,3308.2,3307.3,0.55]
[1732288683291,0.03779225,3308.1,3307.3,0.55]
[1732288683598,0.8094,3308.2,3307.3,3.55]
[1732288683757,0.03778962,3308.1,3307.3,0.55]
[1732288684159,0.03778962,3308.1,3307.0,0.55]
[1732288684405,0.03778962,3308.1,3306.9,0.55]
[1732288684559,0.7594,3308.0,3306.9,0.55]
[1732288684760,0.03779554,3307.9,3306.9,0.55]
[1732288684962,0.7594,3308.0,3306.9,0.55]
[1732288685184,0.7594,3308.0,3307.3,0.55]
[1732288686684,0.03778927,3307.9,3307.3,0.55]
[1732288686896,0.03778927,3307.9,3305.1,0.01]
[1732288686897,0.0377928,3307.8,3306.4,3.57300335]
[1732288687111,0.7571,3307.7,3306.1,0.372]
[1732288687265,0.7571,3307.5,3306.0,3.57300335]
[1732288687612,0.7571,3307.3,3305.3,0.372]
[1732288687902,0.03780376,3307.4,3304.9,0.372]
[1732288687903,0.7753,3307.1,3304.9,0.372]
[1732288688098,0.7753,3306.9,3305.2,3.57300335]
[1732288688304,0.7753,3306.7,3305.0,0.75558014]
[1732288688503,0.03781521,3306.6,3304.4,3.94500335]
[1732288688795,0.7753,3306.5,3304.4,0.372]
[1732288689100,0.80232014,3306.4,3304.4,0.372]
[1732288689658,0.80232014,3306.4,3304.4,3.372]
[1732288690095,0.80232014,3306.4,3304.8,3.8887394]
[1732288690264,0.7645,3306.4,3304.9,0.55]
[1732288690466,0.8301168,3306.3,3304.8,3.8887394]
[1732288691165,0.7923,3306.3,3304.8,3.8887394]
[1732288691771,0.7923,3306.3,3305.4,3.922]
[1732288692003,0.03780681,3306.8,3305.4,3.922]
[1732288692297,0.7613,3306.7,3305.4,0.55]
[1732288692461,0.03780884,3306.6,3305.4,0.55]
[1732288693071,0.03780884,3306.6,3305.4,3.55]
[1732288693496,0.8282,3306.5,3305.4,0.55]
[1732288693699,0.8282,3306.5,3304.9,3.0]
[1732288693700,0.03781157,3306.4,3304.9,3.0]
[1732288693873,0.8033,3306.3,3304.9,3.0]
[1732288694074,0.03781515,3306.2,3304.9,3.0]
[1732288694274,0.03781646,3306.2,3304.9,3.0]
[1732288694486,0.8033,3306.3,3304.9,3.0]
[1732288694685,0.7705,3306.1,3304.3,4.36378189]